bitfinex-derivatives/quotes_ETHF0:USTF0_20250106
["timestamp","ask_amount","ask_price","bid_price","bid_amount"]
[1736178925303,3.2078,3707.8,3706.7,3.2078]
[1736178926001,0.26971,3707.5,3707.2,0.26972]
[1736178926400,0.26972,3707.4,3707.1,0.26973]
[1736178926598,0.26975,3707.0,3706.8,1.5745]
[1736178926799,0.67425,3707.6,3706.5,1.4688]
[1736178927007,4.903,3707.8,3706.7,3.2078]
[1736178927202,0.67422,3707.8,3706.7,3.47756]
[1736178927398,0.94393,3707.7,3706.7,3.2078]
[1736178927706,3.2078,3707.8,3706.7,3.2078]
[1736178927905,0.26976,3706.8,3706.7,3.2078]
[1736178928102,1.221,3707.5,3706.5,1.4688]
[1736178928309,3.2078,3707.3,3706.3,3.2078]
[1736178928500,3.2078,3706.8,3705.7,3.2078]
[1736178928696,4.903,3707.1,3705.7,3.2078]
[1736178928901,0.6744,3706.8,3705.7,3.2078]
[1736178929299,0.26975,3707.0,3706.6,0.26977]
[1736178929502,1.4656,3707.2,3706.8,3.2078]
[1736178929710,0.26973,3707.1,3706.8,3.2078]
[1736178929909,0.26975,3706.9,3706.8,3.2078]
[1736178930110,1.4656,3707.2,3706.8,3.2078]
[1736178930312,1.4656,3707.2,3707.0,0.26974]
[1736178930514,1.4656,3707.2,3706.9,0.26975]
[1736178930706,0.26972,3707.4,3707.1,41.06973]
[1736178931008,4.903,3708.0,3707.1,40.8]
[1736178931203,4.903,3708.0,3707.2,3.2078]
[1736178931610,0.26972,3707.4,3707.2,3.2078]
[1736178932014,4.903,3708.0,3707.2,3.2078]
[1736178932401,0.26973,3707.2,3707.1,44.0078]
[1736178932603,0.6742,3707.9,3707.1,44.0078]
[1736178932807,0.67418,3708.0,3707.1,44.0078]
[1736178933005,0.26972,3707.4,3707.1,44.27753]
[1736178933205,1.4954,3708.1,3707.1,44.0078]
[1736178933413,0.2697,3707.7,3707.1,44.0078]
[1736178933708,3.2078,3708.2,3707.4,2.65475208]
[1736178933905,0.26966,3708.1,3707.8,0.26968]
[1736178934111,0.26968,3707.9,3707.8,3.2078]
[1736178934312,0.26969,3707.8,3707.4,5.86255208]
[1736178934613,0.67412,3708.3,3707.4,5.86255208]
[1736178934811,0.67417,3708.1,3707.4,5.86255208]
[1736178935008,0.2697,3707.6,3707.4,6.13226208]
[1736178935206,0.67412,3708.3,3707.4,5.86255208]
[1736178935408,1.547,3708.4,3707.4,5.86255208]
[1736178935711,0.27338015,3707.6,3707.4,6.13226208]
[1736178935911,0.00368015,3707.6,3707.5,0.26971]
[1736178936111,0.00368015,3707.6,3707.4,5.86255208]
[1736178936511,0.27338015,3707.6,3707.4,6.13226208]
[1736178936909,0.00368015,3707.6,3707.4,5.86255208]
[1736178937108,0.67414,3708.2,3707.4,3.2078]
[1736178937309,0.26975,3707.0,3706.7,0.26976]
[1736178937508,0.26975,3707.0,3706.6,5.86255208]
[1736178937509,0.26973,3707.2,3706.9,0.26974]
[1736178937704,0.26973,3707.2,3706.6,5.86255208]
[1736178937705,9.3328,3707.8,3707.0,40.8]
[1736178937904,0.67424,3707.7,3706.6,3.2078]
[1736178938118,0.67427,3707.5,3706.7,0.26976]
[1736178938315,0.26973,3707.2,3707.0,0.26974]
[1736178938510,0.26973,3707.2,3707.0,41.06974]
[1736178938812,0.26972,3707.3,3707.1,0.26973]
[1736178939110,0.26972,3707.4,3707.1,3.47753]
[1736178939311,4.903,3707.7,3707.1,3.2078]
[1736178939515,0.26969,3707.8,3707.5,0.2697]
[1736178939715,1.5365,3708.2,3707.1,3.2078]
[1736178940015,4.7443,3708.2,3707.1,3.2078]
[1736178940315,0.26967,3708.0,3707.2,0.94405]
[1736178940611,0.26966,3708.1,3707.5,3.2078]
[1736178940807,0.26968,3707.9,3707.5,3.2078]
[1736178941010,0.26968,3707.9,3707.7,0.26968]
[1736178941209,0.26967,3708.0,3707.8,0.26968]
[1736178941414,0.26966,3708.1,3707.5,3.2078]
[1736178941714,0.2697,3707.6,3707.5,3.2078]
[1736178942115,0.2697,3707.7,3707.5,3.2078]
[1736178942310,8.78496,3708.1,3707.5,3.2078]
[1736178942515,0.2697,3707.6,3707.5,3.2078]
[1736178942712,0.26972,3707.4,3707.2,0.26972]
[1736178942915,0.2697,3707.7,3707.4,0.26971]
[1736178943119,0.26971,3707.5,3707.3,41.06972]
[1736178943511,7.11316,3708.1,3707.3,40.8]
[1736178943717,0.26971,3707.5,3707.3,40.8]
[1736178944017,0.26971,3707.4,3707.3,40.8]
[1736178944619,10.32096,3708.1,3707.3,40.8]
[1736178944821,6.439,3708.1,3707.3,40.8]
[1736178945116,4.903,3708.1,3707.4,5.86255208]
[1736178945311,4.903,3708.1,3707.9,3.2078]
[1736178945511,4.903,3708.1,3707.3,40.8]
[1736178945512,0.26969,3707.7,3707.5,0.2697]
[1736178945719,4.903,3708.1,3707.3,40.8]
[1736178946025,4.903,3708.1,3707.4,0.26971]
[1736178946026,0.26971,3707.5,3707.4,0.26971]
[1736178946213,0.26971,3707.4,3707.3,40.8]
[1736178946819,0.26972,3707.3,3707.2,3.2078]
[1736178947313,0.26972,3707.3,3707.2,44.0078]
[1736178949218,0.26971,3707.5,3707.2,44.0078]
[1736178949421,0.2697,3707.7,3707.5,0.2697]
[1736178949620,0.26969,3707.7,3707.5,0.2697]
[1736178950122,0.2697,3707.7,3707.2,44.0078]
[1736178950517,1.6292,3708.3,3707.6,3.2078]
[1736178950713,1.6292,3708.3,3707.4,2.65475208]
[1736178950714,0.26965,3708.2,3708.0,3.2078]
[1736178951421,1.6292,3708.3,3708.0,3.2078]
[1736178951622,8.1108,3709.0,3708.0,3.2078]
[1736178951824,0.67402,3708.9,3708.1,0.26966]
[1736178952026,8.1108,3709.0,3708.0,3.2078]
[1736178952227,0.26962,3708.7,3708.4,0.26964]
[1736178952522,8.1108,3709.0,3708.4,3.2078]
[1736178952523,0.26963,3708.6,3708.4,3.2078]
[1736178952728,0.2696,3708.9,3708.5,40.8]
[1736178952930,0.26963,3708.6,3708.5,40.8]
[1736178953324,0.2696,3709.0,3708.6,0.26962]
[1736178953629,1.6307,3709.2,3708.9,3.2078]
[1736178954223,0.26957,3709.5,3708.9,3.2078]
[1736178954417,4.903,3709.6,3709.0,0.26959]
[1736178954418,0.26957,3709.4,3709.0,0.26959]
[1736178954626,0.2696,3709.0,3708.9,3.2078]
[1736178954817,0.67391,3709.5,3708.5,43.8979]
[1736178954818,0.26963,3708.6,3708.5,40.8]
[1736178955023,2.65475208,3709.2,3708.1,3.2078]
[1736178955024,7.55775208,3709.2,3708.1,3.2078]
[1736178955225,0.26965,3708.2,3708.1,3.2078]
[1736178955520,0.26968,3707.8,3707.7,9.46000754]
[1736178955720,0.26968,3707.8,3707.7,6.25220754]
[1736178956527,0.26968,3707.8,3707.3,3.2078]
[1736178956528,0.2697,3707.6,3707.3,3.2078]
[1736178956735,0.26971,3707.5,3707.3,3.2078]
[1736178956933,0.26971,3707.4,3707.3,3.2078]
[1736178957329,0.26971,3707.4,3706.8,3.0753]
[1736178957330,5.57728,3707.5,3706.7,3.2078]
[1736178957636,0.26975,3706.9,3706.7,3.2078]
[1736178957829,1.6369,3707.4,3706.8,0.26976]
[1736178958133,1.6369,3707.4,3706.7,3.2078]
[1736178958333,1.6369,3707.4,3707.1,3.2078]
[1736178958539,4.903,3707.5,3707.2,0.26973]
[1736178958828,0.26973,3707.2,3707.1,3.2078]
[1736178959425,0.26972,3707.3,3707.1,3.2078]
[1736178959936,4.903,3707.5,3707.1,3.2078]
[1736178960433,0.26972,3707.3,3707.1,3.2078]
[1736178960626,0.26972,3707.3,3707.1,3.47753]
[1736178960829,0.26973,3707.2,3707.1,3.2078]
[1736178961431,0.26973,3707.2,3707.1,44.0078]
[1736178962436,0.26972,3707.4,3707.1,44.0078]
[1736178962636,0.2697,3707.7,3707.4,0.26971]
[1736178962835,2.09882815,3707.8,3707.5,0.2697]
[1736178963039,2.09882815,3707.8,3707.7,0.26969]
[1736178963428,2.09882815,3707.8,3707.5,3.2078]
[1736178963627,1.5447,3708.0,3707.5,3.2078]
[1736178963831,0.26969,3707.8,3707.5,3.2078]
[1736178964029,0.26968,3707.9,3707.5,3.2078]
[1736178964234,0.26968,3707.8,3707.5,3.2078]
[1736178964439,0.26968,3707.8,3707.6,0.2697]
[1736178964840,0.26969,3707.7,3707.5,3.4775]
[1736178965041,0.26969,3707.8,3707.6,0.2697]
[1736178965537,0.26968,3707.9,3707.7,0.26969]
[1736178965738,0.26969,3707.8,3707.6,0.26969]
[1736178966240,1.5447,3708.0,3707.6,0.26969]
[1736178966538,0.26969,3707.8,3707.6,0.26969]
[1736178966837,0.26969,3707.8,3707.5,3.2078]
[1736178966838,0.26973,3707.2,3707.1,40.8]
[1736178967137,3.64352815,3708.0,3707.5,0.2697]
[1736178967343,2.36849815,3708.0,3707.8,0.26968]
[1736178967634,2.09882815,3708.0,3707.6,0.26969]
[1736178967833,0.26968,3707.9,3707.7,0.26969]
[1736178968142,2.36849815,3708.0,3707.8,0.26968]
[1736178968438,2.09882815,3708.0,3707.4,3.2078]
[1736178969237,0.26968,3707.9,3707.7,0.26969]
[1736178969545,0.26968,3707.9,3707.2,1.547]
[1736178969546,2.09882815,3708.0,3707.9,0.26968]
[1736178969938,2.09882815,3708.2,3707.9,42.3867]
[1736178970342,0.26966,3708.1,3707.9,42.65637]
[1736178970544,0.26967,3708.1,3708.0,0.26967]
[1736178970737,0.2697,3707.6,3707.5,1.5319]
[1736178970937,0.26971,3707.5,3707.4,3.2078]
[1736178971538,0.26971,3707.4,3707.3,8.46940358]
[1736178972342,0.26971,3707.5,3707.3,3.2078]
[1736178972649,2.09882815,3707.6,3707.3,3.2078]
[1736178972845,2.36852815,3707.6,3707.4,0.26971]
[1736178973139,2.09882815,3707.6,3707.3,3.2078]
[1736178973335,0.67422,3707.8,3707.0,40.8]
[1736178973540,0.26973,3707.1,3707.0,40.8]
[1736178974352,0.26974,3707.0,3706.9,6.30395171]
[1736178974741,0.67431,3707.3,3706.9,40.8]
[1736178975045,0.26974,3707.0,3706.9,40.8]
[1736178976350,2.36856815,3707.0,3706.9,40.8]
[1736178976846,2.36856815,3707.0,3706.5,3.47757]
[1736178976847,0.26977,3706.6,3706.5,3.2078]
[1736178977244,0.2698,3706.2,3706.1,6.30395171]
[1736178977438,7.82755208,3706.2,3706.1,6.30395171]
[1736178977643,7.82755208,3706.2,3706.1,4.07399819]
[1736178977644,12.82755208,3706.2,3706.1,4.07399819]
[1736178977845,0.26983,3705.8,3705.7,4.07399819]
[1736178978550,2.92458208,3705.8,3705.7,4.07399819]
[1736178979046,0.26985,3705.5,3705.4,49.26940358]
[1736178979553,0.26985,3705.5,3705.4,40.8]
[1736178979750,0.26988,3705.1,3705.0,3.2078]
[1736178980046,0.26988,3705.1,3704.7,0.26991]
[1736178980245,7.00182815,3705.7,3705.0,3.2078]
[1736178980448,7.00182815,3705.7,3704.8,40.8]
[1736178980647,0.26989,3705.0,3704.8,40.8]
[1736178980847,6.4319,3705.6,3704.8,40.8]
[1736178981042,0.26989,3705.0,3704.8,40.8]
[1736178981251,6.4319,3705.6,3704.8,40.8]
[1736178981750,0.26989,3705.0,3704.8,40.8]
[1736178981951,0.26989,3705.0,3704.6,4.7533]
[1736178981952,0.26991,3704.7,3704.6,3.2078]
[1736178982451,4.903,3704.8,3704.0,3.2078]
[1736178982649,0.26995,3704.1,3704.0,3.2078]
[1736178983353,4.903,3704.1,3703.3,3.2078]
[1736178983547,0.27,3703.4,3703.3,3.2078]
[1736178983850,0.27,3703.4,3703.3,40.8]
[1736178984247,4.903,3704.0,3703.3,40.8]
[1736178984948,4.903,3704.8,3703.7,5.86255208]
[1736178985150,0.26994,3704.3,3704.2,3.2078]
[1736178985353,0.26994,3704.3,3703.8,1.78247]
[1736178985354,2.09882815,3704.3,3703.8,4.7203]
[1736178985652,0.26997,3703.9,3703.8,3.2078]
[1736178985842,9.18285208,3704.2,3703.4,3.2078]
[1736178986048,0.27,3703.5,3703.4,3.2078]
[1736178986265,1.5723,3704.1,3703.4,3.2078]
[1736178986456,8.44865377,3704.1,3703.4,3.2078]
[1736178986650,10.40485208,3704.2,3703.4,3.2078]
[1736178986850,0.26995,3704.1,3703.8,3.2078]
[1736178987060,6.5281,3704.2,3703.8,3.2078]
[1736178987250,0.26997,3703.9,3703.8,3.2078]
[1736178987451,0.26997,3703.9,3703.4,3.2078]
[1736178987644,4.903,3704.2,3703.4,3.2078]
[1736178987645,0.26996,3704.0,3703.4,3.2078]
[1736178987955,1.44155135,3704.5,3703.4,3.2078]
[1736178987956,4.903,3704.4,3703.4,3.2078]
[1736178988156,0.26999,3703.7,3703.4,3.2078]
[1736178988455,4.903,3704.3,3703.4,3.2078]
[1736178988653,4.903,3704.3,3703.8,3.2078]
[1736178989050,0.26995,3704.2,3703.8,3.47777]
[1736178989354,0.26995,3704.1,3703.9,40.8]
[1736178989555,0.26996,3704.0,3703.9,40.8]
[1736178989957,0.26996,3704.1,3703.9,40.8]
[1736178990157,0.26995,3704.2,3703.9,40.8]
[1736178990363,0.26991,3704.8,3704.4,0.26993]
[1736178990656,4.903,3705.1,3704.6,3.2078]
[1736178990856,0.26991,3704.7,3704.6,3.2078]
[1736178991260,0.2699,3704.8,3704.6,3.2078]
[1736178991459,4.903,3705.1,3704.6,3.2078]
[1736178991755,0.26991,3704.7,3704.6,3.2078]
[1736178992258,0.26986,3705.4,3705.0,0.26988]
[1736178992461,0.26986,3705.4,3704.6,5.86255208]
[1736178992462,0.26985,3705.5,3705.3,3.2078]
[1736178992650,0.26986,3705.4,3705.3,3.2078]
[1736178992849,0.26986,3705.4,3705.3,44.0078]
[1736178993254,0.26986,3705.4,3705.3,3.2078]
[1736178994150,5.26986,3705.4,3705.3,3.2078]
[1736178994351,0.26993,3704.4,3704.3,3.2078]
[1736178994554,2.65475208,3704.4,3703.9,3.2078]
[1736178994760,0.26997,3703.9,3703.6,0.26999]
[1736178994959,0.26997,3703.9,3703.5,3.2078]
[1736178995157,4.903,3704.3,3703.5,3.2078]
[1736178995360,0.26993,3704.5,3704.1,0.26995]
[1736178995663,1.222,3704.9,3704.2,1.634]
[1736178995857,0.26991,3704.8,3704.4,0.26992]
[1736178996157,0.26994,3704.3,3704.2,1.634]
[1736178996361,1.34922,3705.7,3704.2,1.634]
[1736178996362,3.2078,3704.9,3704.2,9.96362208]
[1736178996555,0.26977,3706.6,3705.9,0.26981]
[1736178996752,0.26977,3706.6,3704.3,1.222]
[1736178996753,4.903,3706.7,3706.0,1.6347]
[1736178996964,2.09894933,3706.3,3706.0,1.6347]
[1736178997162,0.2698,3706.2,3706.0,1.6347]
[1736178997558,2.09894933,3706.3,3706.0,1.6347]
[1736178997758,2.36874933,3706.3,3706.0,1.90451]
[1736178998063,2.36874933,3706.3,3706.0,1.6347]
[1736178998257,2.09894933,3706.3,3706.0,1.6347]
[1736178998461,0.2698,3706.2,3706.0,1.6347]
[1736178999161,4.903,3706.7,3706.0,1.6347]
[1736178999362,4.903,3706.7,3706.1,40.8]
[1736178999563,0.2698,3706.2,3706.1,40.8]
[1736178999764,4.903,3706.7,3706.1,40.8]
[1736178999958,0.26978,3706.5,3706.2,0.26979]
[1736179000162,0.67437,3707.0,3706.2,3.2078]
[1736179000163,4.903,3707.0,3706.2,3.2078]
[1736179001561,0.2698,3706.3,3706.0,1.6347]
[1736179001761,5.86255208,3706.8,3706.0,1.6347]
[1736179001957,5.86255208,3706.8,3706.0,1.90451]
[1736179002268,5.86255208,3706.8,3706.0,1.6347]
[1736179002563,0.26982,3705.9,3705.8,3.2078]
[1736179002760,2.65475208,3706.0,3705.4,3.2078]
[1736179002964,0.26985,3705.5,3705.4,3.2078]
[1736179003160,7.55775208,3705.5,3705.0,3.2078]
[1736179003355,7.55775208,3705.5,3704.6,3.2078]
[1736179003356,3.2078,3705.2,3704.6,3.2078]
[1736179003867,3.47768,3705.2,3704.8,0.2699]
[1736179004068,3.2078,3705.2,3704.6,44.0078]
[1736179004266,0.26989,3705.0,3704.7,0.26991]
[1736179004461,0.26989,3705.0,3704.6,44.27771]
[1736179004660,0.2699,3704.9,3704.6,44.27771]
[1736179004861,3.2078,3705.2,3704.8,0.2699]
[1736179005064,4.903,3705.4,3704.7,0.26991]
[1736179005266,4.903,3705.4,3704.6,44.0078]
[1736179005565,0.2699,3704.9,3704.6,44.27772]
[1736179005762,0.26989,3705.0,3704.6,44.0078]
[1736179006068,4.903,3705.4,3704.6,44.27771]
[1736179006269,4.903,3705.4,3704.6,44.0078]
[1736179006466,4.903,3705.4,3705.3,0.26987]
[1736179006666,4.903,3705.4,3705.0,3.2078]
[1736179006866,0.26988,3705.2,3705.0,3.2078]
[1736179007366,0.26987,3705.3,3704.9,1.5356]
[1736179007565,4.903,3705.4,3704.9,4.7434]
[1736179007963,0.26987,3705.3,3704.9,4.7434]
[1736179008162,4.903,3705.4,3704.9,5.01329]
[1736179008366,0.26987,3705.3,3704.9,4.7434]
[1736179008567,4.903,3705.4,3704.9,4.7434]
[1736179008769,0.26988,3705.2,3704.9,4.7434]
[1736179009065,4.903,3705.4,3704.9,3.2078]
[1736179009269,0.26989,3705.0,3704.9,3.2078]
[1736179009764,2.65475208,3705.1,3704.5,3.2078]
[1736179009969,2.65475208,3705.1,3704.3,1.8105]
[1736179010171,0.26991,3704.7,3704.4,0.26993]
[1736179010471,0.2699,3704.9,3704.6,0.26991]
[1736179010669,3.2078,3705.4,3704.4,3.2078]
[1736179011271,3.2078,3705.0,3703.9,44.0078]
[1736179011466,4.903,3704.9,3703.9,44.0078]
[1736179011660,0.67478,3704.7,3703.9,44.0078]
[1736179011865,0.26996,3704.0,3703.9,40.8]
[1736179012375,0.26999,3703.6,3703.5,3.2078]
[1736179012570,7.55775208,3703.9,3702.9,3.2078]
[1736179012772,0.27,3703.4,3703.0,41.07003]
[1736179013071,0.26998,3703.7,3703.0,41.07003]
[1736179013273,0.27001,3703.4,3703.0,41.07003]
[1736179013575,1.9506,3703.8,3703.0,40.8]
[1736179013870,1.9506,3703.8,3703.0,41.07003]
[1736179014073,7.55775208,3703.9,3703.0,40.8]
[1736179014273,4.903,3703.9,3703.1,1.855]
[1736179014462,1.222,3704.6,3704.4,0.26993]
[1736179014666,7.00194933,3704.9,3704.3,3.2078]
[1736179015067,0.26991,3704.8,3704.4,0.26993]
[1736179015269,2.09894933,3704.9,3704.7,3.2078]
[1736179015674,9.3328,3705.8,3704.8,0.2699]
[1736179015866,2.65475208,3705.5,3705.2,3.2078]
[1736179016067,4.903,3705.6,3705.2,3.47767]
[1736179016267,4.903,3705.6,3705.2,3.2078]
[1736179016673,0.26986,3705.4,3704.9,0.26989]
[1736179016873,0.26986,3705.4,3705.0,0.26989]
[1736179017068,0.26986,3705.4,3705.2,3.2078]
[1736179017263,4.903,3705.6,3705.2,3.2078]
[1736179017469,0.26987,3705.3,3705.2,3.2078]
[1736179017866,4.903,3705.6,3705.2,3.2078]
[1736179018179,0.26987,3705.3,3705.2,3.2078]
[1736179018577,0.26987,3705.3,3705.2,44.0078]
[1736179019080,4.903,3705.6,3705.2,44.0078]
[1736179019276,0.26987,3705.3,3705.2,44.0078]
[1736179019475,0.26989,3704.9,3704.8,3.2078]
[1736179019676,0.94462,3705.0,3704.3,3.2078]
[1736179019974,5.86255208,3705.1,3704.2,40.8]
[1736179020176,5.86255208,3705.1,3704.3,0.26994]
[1736179020177,0.26992,3704.6,3704.3,0.26994]
[1736179020372,7.55775208,3705.1,3704.3,3.2078]
[1736179020575,1.222,3705.0,3704.4,3.2078]
[1736179021281,0.26996,3704.0,3703.9,1.8348]
[1736179021474,0.26995,3704.2,3703.9,1.8348]
[1736179021673,3.2078,3704.6,3704.0,40.8]
[1736179022481,0.26994,3704.3,3704.0,40.8]
[1736179022676,4.903,3704.8,3704.1,3.2078]
[1736179023084,0.26992,3704.5,3704.1,3.2078]
[1736179023279,4.903,3704.8,3704.1,3.2078]
[1736179023787,2.09894933,3705.0,3704.5,3.2078]
[1736179024080,2.36883933,3705.0,3704.9,3.2078]
[1736179024282,0.26989,3705.0,3704.9,3.2078]
[1736179024785,0.26989,3705.0,3704.9,44.0078]
[1736179025182,0.26989,3705.0,3704.9,40.8]
[1736179025687,2.09894933,3705.5,3704.9,44.27769]
[1736179025881,2.09894933,3705.5,3705.0,1.8543]
[1736179026082,0.26988,3705.2,3705.0,1.8543]
[1736179026280,0.26988,3705.2,3704.9,44.27769]
[1736179026583,5.86255208,3705.5,3704.9,3.2078]
[1736179026780,3.87675208,3705.5,3704.5,3.2078]
[1736179027082,1.222,3705.5,3704.9,3.2078]
[1736179027277,4.903,3705.6,3704.9,3.2078]
[1736179027483,4.903,3705.6,3705.1,0.26987]
[1736179027688,0.26986,3705.4,3705.1,0.26987]
[1736179027887,0.26986,3705.4,3704.9,3.2078]
[1736179028088,0.26986,3705.4,3705.1,0.26988]
[1736179028397,0.26985,3705.5,3705.2,0.26987]
[1736179028588,0.26983,3705.8,3705.5,0.26985]
[1736179028783,2.09894933,3705.9,3705.3,5.0872]
[1736179028993,2.09894933,3705.9,3705.7,3.2078]
[1736179029189,2.09894933,3706.0,3705.7,3.2078]
[1736179029590,2.09894933,3706.0,3705.8,0.26982]
[1736179029794,2.09894933,3706.0,3705.7,3.2078]
[1736179030495,0.26983,3705.8,3705.7,3.2078]
[1736179031391,0.26982,3705.9,3705.7,3.47764]
[1736179031587,0.26982,3706.0,3705.8,0.26983]
[1736179032098,9.04623247,3706.6,3705.7,3.2078]
[1736179032099,2.09894933,3706.4,3705.7,3.2078]
[1736179032301,2.36873933,3706.4,3706.2,0.2698]
[1736179032595,0.2698,3706.3,3705.9,40.8]
[1736179032790,2.09894933,3706.4,3705.9,40.8]
[1736179032998,0.26983,3705.8,3705.7,3.2078]
[1736179033599,2.65475208,3706.3,3705.7,3.2078]
[1736179033798,0.26983,3705.8,3705.7,3.2078]
[1736179034002,2.65475208,3705.9,3705.2,3.2078]
[1736179034195,0.26986,3705.4,3705.2,3.2078]
[1736179034497,0.26986,3705.4,3705.0,4.17145578]
[1736179034799,0.26989,3704.9,3704.8,3.2078]
[1736179034996,0.67466,3705.4,3704.7,1.794]
[1736179035191,0.2699,3704.8,3704.7,1.794]
[1736179035495,0.2699,3704.9,3704.7,2.0639]
[1736179035703,0.26989,3705.0,3704.7,1.794]
[1736179035995,3.2078,3705.5,3704.8,3.2078]
[1736179036192,2.09894933,3705.7,3704.8,3.2078]
[1736179036501,0.26988,3705.2,3705.1,0.26988]
[1736179036797,0.26989,3705.1,3705.0,0.26988]
[1736179037700,0.67462,3705.6,3704.8,3.2078]
[1736179038001,0.26987,3705.2,3705.1,0.26987]
[1736179039104,0.26989,3705.1,3705.0,0.26988]
[1736179039498,0.26989,3705.1,3704.8,3.2078]
[1736179039499,0.67462,3705.6,3704.8,3.2078]
[1736179039701,0.26988,3705.2,3705.1,0.26987]
[1736179040107,0.26988,3705.2,3705.1,41.06987]
[1736179040311,0.26988,3705.2,3705.1,40.8]
[1736179041306,0.26987,3705.3,3705.2,0.26986]
[1736179041504,0.26987,3705.3,3705.2,3.47766]
[1736179041897,0.26987,3705.3,3705.2,3.2078]
[1736179042306,0.67461,3705.7,3705.1,40.8]
[1736179042500,0.26987,3705.2,3705.1,40.8]
[1736179044102,0.67461,3705.7,3705.3,0.26986]
[1736179044103,0.26986,3705.4,3705.3,0.26986]
[1736179044508,0.26987,3705.3,3705.2,3.47767]
[1736179045408,0.26986,3705.4,3705.3,0.26986]
[1736179045605,2.09894933,3705.9,3705.2,3.2078]
[1736179045805,0.26987,3705.3,3705.2,3.2078]
[1736179046209,2.65475208,3705.5,3705.1,40.8]
[1736179046513,0.26987,3705.2,3705.1,40.8]
[1736179046807,0.26989,3704.9,3704.8,4.17145578]
[1736179047210,0.26989,3704.9,3704.8,44.97145578]
[1736179047809,0.26989,3704.9,3704.8,40.8]
[1736179049209,0.26989,3704.9,3704.6,3.47771]
[1736179049210,0.26991,3704.7,3704.6,3.47772]
[1736179049411,0.26991,3704.7,3704.6,3.2078]
[1736179049606,0.26992,3704.6,3704.5,0.26992]
[1736179049806,0.26991,3704.7,3704.6,0.26991]
[1736179050202,0.26991,3704.7,3704.2,44.0078]
[1736179050203,0.26991,3704.8,3704.7,0.2699]
[1736179050416,2.11632676,3705.1,3704.2,3.2078]
[1736179050607,4.92285555,3705.1,3704.3,40.8]
[1736179050812,0.26991,3704.7,3704.6,0.26991]
[1736179051110,0.26991,3704.8,3704.7,0.2699]
[1736179051306,0.67469,3705.2,3704.9,0.26989]
[1736179051307,2.11632676,3705.0,3704.9,0.26989]
[1736179052013,2.11632676,3705.0,3704.9,41.06989]
[1736179053011,4.903,3705.3,3705.2,0.26987]
[1736179053207,4.903,3705.3,3705.2,3.47767]
[1736179053407,5.17287,3705.3,3705.2,3.47767]
[1736179053617,4.903,3705.3,3705.2,3.47767]
[1736179053813,5.17287,3705.3,3705.2,3.2078]
[1736179054315,6.09710879,3705.4,3704.6,4.21101458]
[1736179054510,6.09710879,3705.4,3704.7,41.0699]
[1736179054511,0.26991,3704.8,3704.7,41.0699]
[1736179055108,0.2699,3704.9,3704.8,0.26989]
[1736179056816,0.26992,3704.7,3704.6,0.26991]
[1736179057215,2.11632676,3705.3,3704.5,5.33960879]
[1736179057418,2.11632676,3705.3,3704.3,42.8106]
[1736179057419,2.38619676,3705.3,3705.2,0.26987]
[1736179057618,2.11632676,3705.3,3705.2,0.26987]
[1736179057815,3.17449014,3705.4,3705.3,0.26987]
[1736179058810,0.26986,3705.4,3705.3,0.26987]
[1736179059817,2.13180879,3705.6,3705.1,3.2078]
[1736179060013,2.13180879,3705.3,3704.7,4.21101458]
[1736179060218,0.2699,3704.9,3704.8,0.26989]
[1736179060819,0.26989,3705.0,3704.9,0.26988]
[1736179061017,0.2699,3704.9,3704.8,0.26989]
[1736179061319,0.26989,3705.1,3705.0,0.26988]
[1736179061821,2.38579389,3705.1,3705.0,0.26988]
[1736179062020,2.38578389,3705.1,3705.0,3.47768]
[1736179062222,2.11590389,3705.1,3705.0,3.47768]
[1736179063019,2.11590389,3705.3,3705.2,0.26987]
[1736179063319,2.11590389,3705.3,3705.2,41.06987]
[1736179063724,2.38577389,3705.3,3705.2,41.06987]
[1736179064224,0.26987,3705.3,3705.2,41.06987]
[1736179065921,2.11590389,3705.5,3705.0,3.2078]
[1736179066124,0.26988,3705.1,3705.0,3.47768]
[1736179066329,0.26988,3705.1,3705.0,44.27768]
[1736179066522,0.26988,3705.1,3705.0,3.47768]
[1736179066924,0.26988,3705.1,3705.0,44.0078]
[1736179067226,0.26988,3705.1,3705.0,44.27769]
[1736179067817,2.11590389,3705.2,3705.1,0.26988]
[1736179069729,0.26987,3705.4,3705.3,0.26986]
[1736179070125,0.26987,3705.3,3705.2,0.26986]
[1736179070726,0.26987,3705.3,3705.0,44.0078]
[1736179070727,0.26988,3705.1,3705.0,44.0078]
[1736179071025,0.26988,3705.1,3705.0,3.47769]
[1736179071331,3.17449014,3705.5,3705.0,44.0078]
[1736179071523,0.26988,3705.1,3705.0,44.0078]
[1736179073229,3.44437014,3705.1,3705.0,44.0078]
[1736179074035,3.44437014,3705.1,3705.0,3.2078]
[1736179077830,3.44437014,3705.1,3705.0,44.0078]
[1736179078729,3.17449014,3705.1,3704.7,0.2699]
[1736179078930,3.17449014,3705.2,3704.7,4.21101458]
[1736179079130,0.2699,3704.9,3704.8,41.0699]
[1736179079325,3.17449014,3705.2,3704.8,40.8]
[1736179079531,0.26989,3704.9,3704.8,40.8]
[1736179079931,3.44438014,3704.9,3704.8,40.8]
[1736179080235,3.44438014,3704.9,3704.8,41.0699]
[1736179080543,3.44438014,3704.9,3704.8,40.8]
[1736179080926,0.26991,3704.7,3704.6,4.21101458]
[1736179081132,3.17449014,3704.9,3704.6,4.21101458]